[Event "VIII Open Semana Santa 2024"]
[Site "San Vicente del Raspeig"]
[Date "2024.03.29"]
[Round "5.18"]
[White "Arkell, Keith C"]
[Black "Bora, Safal"]
[Result "0-1"]
[ECO "D75"]
[WhiteElo "2371"]
[BlackElo "2490"]
[Annotator "TA"]
[PlyCount "138"]
[EventDate "2024.03.27"]
[EventType "swiss"]
[EventCountry "ESP"]
[SourceTitle "playchess.com"]
[Source "ChessBase"]
[SourceQuality "1"]
[TimeControl "5400+30"]

{[%evp 38,138,25,10,10,18,14,18,16,16,18,17,20,0,0,0,12,0,0,0,0,0,7,0,0,0,0,0,0,0,0,0,0,0,0,0,0,-3,0,0,0,0,0,0,0,0,8,0,0,0,-4,-6,0,-28,0,0,0,-16,-16,-115,-130,-121,-107,-152,-152,-152,-152,-152,-152,-152,-152,-162,-157,-145,-148,-157,-137,-135,-107,-192,-177,-213,-206,-179,-109,-108,-108,-346,-342,-520,-497,-608,-553,-29949,-29957,-29961,-29956,-29978,-29979,-29984,-29985,-29985,-29986]} 1. d4 {[%emt 0:00:18]} Nf6 {[%emt 0:02:43]} 2. Nf3 {[%emt 0:00:06]} g6 {[%emt 0:00:11]} 3. c4 {[%emt 0:00:07]} Bg7 {[%emt 0:00:09]} 4. Nc3 {[%emt 0:00:05]} d5 {[%emt 0:00:07]} 5. cxd5 {[%emt 0:00:05]} Nxd5 {[%emt 0:00:05]} 6. g3 {[%emt 0:00:04]} O-O {[%emt 0:01:09]} 7. Bg2 {[%emt 0:00:04]} Nxc3 {[%emt 0:00:20]} 8. bxc3 {[%emt 0:00:04]} c5 {[%emt 0:00:04]} 9. O-O {[%emt 0:00:04]} Nc6 {[%emt 0:00:46]} 10. e3 {[%emt 0:00:07]} Be6 {[%emt 0:01:24]} 11. Nd2 {[%emt 0:02:56] D75: Fianchetto Grünfeld: Main Line with 7...c5.} cxd4 {[%emt 0:02:25]} 12. cxd4 {[%emt 0:00:05]} Bd5 {[%emt 0:01:07]} 13. Bb2 {[%emt 0:00:50]} Bxg2 $146 {[%emt 0:11:27]} ({Predecessor:} 13... e5 14. e4 Bxa2 15. Rxa2 exd4 16. Qb3 Na5 17. Qb4 b6 18. Rd1 Re8 19. f4 Rc8 20. e5 Bf8 21. Qb5 d3 22. Ne4 {1-0 Tessedik,K (1868)-Darazs,Z (2124) Budapest FS10 FM-A1 2012 (2)}) 14. Kxg2 {[%emt 0:00:06]} e5 {[%emt 0:00:20]} 15. dxe5 {[%emt 0:05:22]} Nxe5 {[%emt 0:00:19]} 16. Rb1 {[%emt 0:01:36]} Qd5+ {[%emt 0:06:36]} 17. Nf3 {[%emt 0:00:15]} Qe4 {[%emt 0:01:43]} 18. Bxe5 {[%emt 0:00:21]} Bxe5 {[%emt 0:00:04]} 19. Qd7 {[%emt 0:03:35]} b6 {[%emt 0:00:28]} 20. Rfc1 {[%emt 0:04:41]} Rad8 {[%emt 0:10:54]} 21. Qc6 {[%emt 0:00:46]} (21. Qxa7 $2 g5 22. h3 (22. Qxb6 $2 {too greedy.} g4 $19) 22... h5 $17) 21... Qxc6 {[%emt 0:00:42]} 22. Rxc6 {[%emt 0:00:06]} Bd6 {[%emt 0:01:53]} 23. a4 {[%emt 0:04:16]} Rd7 {[%emt 0:02:32]} 24. Nd4 {[%emt 0:02:34]} (24. Rd1 $5 Rfd8 $8 25. Kf1 $11) 24... Rfd8 {[%emt 0:01:34]} 25. a5 {[%emt 0:02:02]} bxa5 {[%emt 0:01:36]} 26. Ra6 {[%emt 0:00:59]} Bc5 {[%emt 0:04:39]} 27. Rxa5 {[%emt 0:00:29]} Bb6 {[%emt 0:04:53]} 28. Ra4 {[%emt 0:08:13]} Rc8 {[%emt 0:02:09]} 29. Rb2 {[%emt 0:00:56]} Rc5 {[%emt 0:00:54]} 30. g4 {[%emt 0:01:04]} Rdc7 {[%emt 0:01:38]} 31. h3 {[%emt 0:00:34]} Rc4 {[%emt 0:01:07]} 32. Rxc4 {[%emt 0:01:03]} Rxc4 {[%emt 0:00:03]} 33. Nb5 {[%emt 0:01:03]} Kg7 {[%emt 0:04:55]} 34. Rd2 {[%emt 0:04:34]} Rc5 {[%emt 0:03:12]} 35. Nd6 {[%emt 0:00:19]} Rc6 {[%emt 0:05:56]} 36. Ne4 {[%emt 0:06:41]} h6 {[%emt 0:03:17]} 37. Rd7 {[%emt 0:02:15]} Rc7 {[%emt 0:01:02]} 38. Rd3 {[%emt 0:03:27]} Rc4 {[%emt 0:02:47]} 39. Kf3 {[%emt 0:01:36]} Rc6 {[%emt 0:05:12]} 40. Rd7 {[%emt 0:01:15]} Kf8 {[%emt 0:00:47]} 41. Ke2 {[%emt 0:02:37]} Rc7 {[%emt 0:04:37]} 42. Rd3 {[%emt 0:00:44]} Ke7 {[%emt 0:00:20]} 43. h4 {[%emt 0:07:51]} Rc4 {[%emt 0:00:46]} 44. Kf3 {[%emt 0:00:19]} a5 {[%emt 0:01:07]} 45. Nc3 {[%emt 0:00:53]} Ke6 {[%emt 0:01:33]} 46. Nd5 {[%emt 0:01:14]} Bc7 {[%emt 0:00:58]} 47. e4 {[%emt 0:03:38]} a4 {[%emt 0:00:43]} 48. Ne3 {[%emt 0:00:38]} (48. g5 $1 $11 {remains equal.}) 48... Rc6 $17 {[%emt 0:01:32]} 49. Ra3 {[%emt 0:04:19]} Ra6 {[%emt 0:00:07]} 50. Nc4 {[%emt 0:00:09]} Bd6 $1 {[%emt 0:00:13]} 51. Ra2 {[%emt 0:00:02] [#]} Be7 $1 {[%emt 0:01:36]} 52. h5 {[%emt 0:01:06]} gxh5 {[%emt 0:00:19]} 53. gxh5 {[%emt 0:00:03]} Kf6 {[%emt 0:00:33]} 54. Kg4 {[%emt 0:11:23]} a3 {[%emt 0:00:28]} 55. f4 {[%emt 0:00:11]} Bc5 {[%emt 0:01:47]} 56. Kf3 {[%emt 0:01:18]} Ra4 {[%emt 0:00:12]} 57. Ne5 {[%emt 0:00:29]} Bd4 {[%emt 0:02:03]} 58. Nd3 {[%emt 0:00:29]} (58. Ng4+ $17 Kg7 59. Ke2) 58... Ke6 $19 {[%emt 0:00:22]} 59. f5+ {[%emt 0:00:34]} Kd6 {[%emt 0:00:08]} 60. Ke2 {[%emt 0:00:34] [#]} f6 {[%emt 0:01:24]} (60... Kc6 $1 $19 61. Kd2 Kb5) 61. Kd2 $17 {[%emt 0:00:15]} Bc5 {[%emt 0:00:40]} 62. e5+ $2 {[%emt 0:03:29]} (62. Kc1 $17) 62... fxe5 $19 {[%emt 0:00:05]} 63. Kc3 {[%emt 0:04:07]} (63. Kc2 $142) 63... e4 $19 {[%emt 0:01:44]} 64. Kb3 {[%emt 0:01:29]} Ra6 {[%emt 0:01:07]} 65. Nxc5 {[%emt 0:00:35]} Kxc5 {[%emt 0:00:05]} 66. Rc2+ {[%emt 0:02:37]} Kd4 {[%emt 0:00:09]} 67. Ka2 {[%emt 0:00:14]} e3 {[%emt 0:01:11]} 68. Rc8 {[%emt 0:00:38]} e2 {[%emt 0:00:13]} 69. Re8 {[%emt 0:00:06]} Kd3 {[%emt 0:00:04]} 0-1

[Event "VIII Open Semana Santa 2024"]
[Site "San Vicente del Raspeig"]
[Date "2024.03.29"]
[Round "5.19"]
[White "Xiao, Tong(Qd)"]
[Black "Serarols Mabras, Bernat"]
[Result "1-0"]
[ECO "B12"]
[WhiteElo "2484"]
[BlackElo "2360"]
[Annotator "TA"]
[PlyCount "89"]
[EventDate "2024.03.27"]
[EventType "swiss"]
[EventCountry "ESP"]
[SourceTitle "playchess.com"]
[Source "ChessBase"]
[SourceQuality "1"]
[TimeControl "5400+30"]

{[%evp 10,89,29,25,31,24,26,0,21,-8,5,-22,-18,-11,-2,-9,37,61,56,40,31,38,31,42,45,34,23,13,58,62,62,34,118,105,97,89,243,250,245,247,243,220,210,187,186,174,229,226,224,212,263,250,294,279,263,144,775,347,627,348,354,359,330,325,537,468,435,420,29982,29983,29992,29990,29993,29991,29993,29994,29996,29994,29994,29995,29995,29995]} 1. e4 {[%emt 0:00:03]} c6 {[%emt 0:02:13]} 2. d4 {[%emt 0:00:06]} d5 {[%emt 0:00:31]} 3. e5 {[%emt 0:00:09]} Bf5 {[%emt 0:00:14]} 4. Nf3 {[%emt 0:00:14]} e6 {[%emt 0:00:07]} 5. Be2 {[%emt 0:00:10]} Ne7 {[%emt 0:00:11]} 6. O-O {[%emt 0:00:13]} Ng6 {[%emt 0:00:03]} 7. Be3 {[%emt 0:01:02]} Nd7 {[%emt 0:01:59]} 8. Nbd2 {[%emt 0:00:20]} f6 {[%emt 0:00:30][%cal Rf6e5] The position is equal.} 9. Nb3 {[%emt 0:06:48]} fxe5 {[%emt 0:13:12]} 10. Nxe5 {[%emt 0:00:48]} Ngxe5 {[%emt 0:10:00]} 11. dxe5 {[%emt 0:00:03]} Nxe5 {[%emt 0:00:59]} 12. Nd4 {[%emt 0:00:21]} Qh4 {[%emt 0:16:11] Dodges g4} (12... Bd6 $11 {was preferrable.}) 13. Nxf5 $14 {[%emt 0:06:02]} exf5 {[%emt 0:00:47]} 14. Bd4 {[%emt 0:01:34]} Ng4 {[%emt 0:10:45]} 15. Bxg4 {[%emt 0:00:58]} Qxg4 {[%emt 0:00:08]} 16. Re1+ {[%emt 0:00:08]} Kf7 {[%emt 0:00:29]} 17. Qd3 {[%emt 0:00:14]} Bd6 {[%emt 0:04:40]} 18. c4 {[%emt 0:01:27]} Rhd8 {[%emt 0:01:25]} 19. cxd5 {[%emt 0:08:49]} cxd5 {[%emt 0:00:49]} 20. h3 {[%emt 0:02:38] Dancing on a razor blade.} Qf4 {[%emt 0:04:36]} (20... Qg6 $14) 21. g3 $16 {[%emt 0:00:10][%mdl 1024] White has strong compensation.} Qg5 {[%emt 0:00:11]} 22. Be5 {[%emt 0:03:08] White is more active.} Bf8 $2 {[%emt 0:03:43]} (22... Bc5 $16 {was called for.}) 23. Bc7 $18 {[%emt 0:01:22]} Rd7 {[%emt 0:00:43][%cal Of7g8] [#]} 24. Qb5 $1 {[%emt 0:00:15][%csl LRb7,LRd7]} Rad8 {[%emt 0:06:07]} (24... Rxc7 $2 25. Qxd5+ Kg6 26. Re6+ $18) 25. Bxd8 $40 {[%emt 0:00:20][%mdl 128] White goes for the king.} Qxd8 {[%emt 0:00:02]} 26. Re5 {[%emt 0:01:32]} g6 {[%emt 0:00:34]} 27. Rae1 {[%emt 0:00:10]} Bg7 {[%emt 0:00:50]} (27... Be7 $142 28. Qb3 Kf8) 28. Re6 {[%emt 0:00:11]} Bf6 {[%emt 0:00:19]} 29. Qc5 {[%emt 0:04:25]} d4 {[%emt 0:07:52]} 30. Qc4 {[%emt 0:00:49] [#] White wants to mate with Re7+.} (30. Qxa7 $6 d3 31. Qb6 d2 $18) 30... Kg7 {[%emt 0:00:05]} 31. Re8 {[%emt 0:00:08]} Qc7 {[%emt 0:00:51]} 32. Qe6 {[%emt 0:11:25]} (32. Qg8+ $18 Kh6 33. Qf8+ Bg7 34. Qb4) 32... Qc6 $2 {[%emt 0:05:44][%mdl 8192] A mistake that costs the game.} (32... Rf7 $16 33. Rc8 Qd7 34. Qxd7 Rxd7) 33. Qg8+ {[%emt 0:04:09]} Kh6 {[%emt 0:00:02]} 34. Qf8+ {[%emt 0:00:10]} Bg7 {[%emt 0:00:07]} 35. Qb4 {[%emt 0:00:08]} Qc2 {[%emt 0:02:27] Dodges Qd2+} 36. R8e2 {[%emt 0:02:36]} Qd3 {[%emt 0:00:10]} (36... Qc7 {might work better.} 37. Re7 Rxe7 38. Qxe7 Qxe7 39. Rxe7 b5 40. Rxa7 Bf8) 37. Qc5 {[%emt 0:01:28] Strongly threatening Qc1+.} Qf3 {[%emt 0:02:02]} 38. Re7 {[%emt 0:03:07][%cal Be2e7,Be7h7,Bh7h4,Bh4d4][%mdl 32]} (38. Qxa7 d3 39. Qe3+ Qxe3 40. Rxe3 d2 $16) 38... Rd5 {[%emt 0:03:43]} (38... Rxe7 $18 39. Qxe7 a5) 39. Qc7 {[%emt 0:00:39] White mates.} (39. Qxa7 d3 40. R1e3 (40. Rxb7 $2 d2 $19) 40... Qh5 $18) 39... Bf6 {[%emt 0:00:41]} 40. Rxh7+ {[%emt 0:00:09]} Kg5 {[%emt 0:00:02]} 41. Rh4 {[%emt 0:05:03]} d3 {[%emt 0:00:45]} 42. Qh7 {[%emt 0:00:13][%csl Gh4][%cal Rh7h6]} (42. Qxb7 d2 $11) 42... Bd4 {[%emt 0:00:57]} 43. Qh6+ {[%emt 0:00:15]} (43. Qxb7 {gets mated.} Bxf2+ (43... Qxf2+ {leads to mate.} 44. Kh1 Qxe1+ 45. Kg2 Qg1+ 46. Kf3 Qh1#) 44. Kh2 Bxg3+ (44... Bxe1 45. Qe7#) 45. Kg1 Qf2+ 46. Kh1 Qh2#) 43... Kf6 {[%emt 0:00:02]} 44. Qh8+ {[%emt 0:00:07]} Kg5 {[%emt 0:00:28]} 45. Rxd4 {[%emt 0:00:10] Weighted Error Value: White=0.18 (very precise) /Black=0.44.  Loses game:     	---       	Black=1      Mistake:       	White=1     	Black=6      Inaccurate:     	White=3     	Black=2      OK:         	White=13    	Black=6      Best:        	White=3     	Black=5      Strong:       	White=1     	---} 1-0

[Event "VIII Open Semana Santa 2024"]
[Site "San Vicente del Raspeig"]
[Date "2024.03.29"]
[Round "5.20"]
[White "Schulman, Julia"]
[Black "Tynyshtyk, Diana"]
[Result "0-1"]
[ECO "B80"]
[WhiteElo "1732"]
[BlackElo "1946"]
[Annotator "NA RC"]
[PlyCount "46"]
[EventDate "2024.03.27"]
[EventType "swiss"]
[EventCountry "ESP"]
[SourceTitle "playchess.com"]
[Source "ChessBase"]
[SourceQuality "1"]
[TimeControl "5400+30"]

1. e4 {[%emt 0:00:02]} c5 {[%emt 0:01:28]} 2. Nf3 {[%emt 0:00:12]} d6 {[%emt 0:00:06]} 3. d4 {[%emt 0:00:16]} cxd4 {[%emt 0:00:04]} 4. Nxd4 {[%emt 0:00:10]} Nf6 {[%emt 0:00:04]} 5. Nc3 {[%emt 0:00:21]} a6 {[%emt 0:00:05]} 6. Bd3 {[%emt 0:00:20]} e6 {[%emt 0:05:41]} 7. Be3 {[%emt 0:02:47]} Qc7 {[%emt 0:04:34]} 8. h3 {[%emt 0:03:45]} Nbd7 {[%emt 0:03:18]} 9. O-O {[%emt 0:00:51]} Be7 {[%emt 0:01:48]} 10. Qd2 {[%emt 0:00:24]} O-O {[%emt 0:01:14]} 11. Rac1 {[%emt 0:02:30]} b6 {[%emt 0:09:39]} 12. Nde2 {[%emt 0:03:07]} Bb7 {[%emt 0:00:49]} 13. Ng3 {[%emt 0:00:50]} Rfd8 {[%emt 0:07:01]} 14. Qe2 {[%emt 0:01:31]} Nc5 {[%emt 0:02:00]} 15. Rfe1 {[%emt 0:07:43]} d5 {[%emt 0:04:30]} 16. exd5 {[%emt 0:00:46]} Nxd5 {[%emt 0:00:24]} 17. Nce4 {[%emt 0:12:58]} Nxd3 {[%emt 0:10:07]} 18. cxd3 {[%emt 0:01:05]} Qd7 {[%emt 0:01:04]} 19. Red1 {[%emt 0:05:35]} f5 {[%emt 0:01:53]} 20. Nc3 {[%emt 0:02:50]} f4 {[%emt 0:00:53]} 21. Bxb6 {[%emt 0:05:01]} Nxb6 {[%emt 0:00:35]} 22. Nge4 {[%emt 0:00:06]} Rac8 {[%emt 0:01:26]} 23. Qh5 {[%emt 0:02:07]} Nd5 {[%emt 0:00:58]} 0-1

[Event "VIII Open Semana Santa 2024"]
[Site "San Vicente del Raspeig"]
[Date "2024.03.30"]
[Round "6.1"]
[White "Piorun, Kacper"]
[Black "Kourkoulos-Arditis, Stamatis"]
[Result "1/2-1/2"]
[ECO "C78"]
[WhiteElo "2599"]
[BlackElo "2556"]
[Annotator "TA"]
[PlyCount "39"]
[EventDate "2024.03.27"]
[EventType "swiss"]
[EventCountry "ESP"]
[SourceTitle "playchess.com"]
[Source "ChessBase"]
[SourceQuality "1"]
[TimeControl "5400+30"]

{[%evp 14,39,1,12,11,13,17,20,15,0,0,18,5,11,0,0,0,0,0,0,0,0,0,0,0,0,0,0]} 1. e4 {[%emt 0:00:04]} e5 {[%emt 0:00:04]} 2. Nf3 {[%emt 0:00:08]} Nc6 {[%emt 0:00:05]} 3. Bb5 {[%emt 0:00:04]} a6 {[%emt 0:00:04]} 4. Ba4 {[%emt 0:00:04]} Nf6 {[%emt 0:00:05]} 5. O-O {[%emt 0:00:06]} Bc5 {[%emt 0:00:05]} 6. Nc3 {[%emt 0:00:21]} b5 {[%emt 0:00:47]} 7. Bb3 {[%emt 0:00:04]} O-O {[%emt 0:01:16]} 8. d3 {[%emt 0:01:32][%cal Bd2d3,Bd3d4][%mdl 32] The position is equal.} h6 {[%emt 0:00:08]} 9. Nd5 {[%emt 0:01:42]} d6 {[%emt 0:01:26]} 10. c3 {[%emt 0:00:36]} Rb8 {[%emt 0:00:26]} 11. d4 {[%emt 0:03:57]} Ba7 {[%emt 0:01:34]} 12. Be3 {[%emt 0:00:10]} Nxd5 {[%emt 0:08:55]} 13. Bxd5 {[%emt 0:08:22]} Ne7 {[%emt 0:02:16]} 14. dxe5 {[%emt 0:10:05]} Bxe3 {[%emt 0:00:34]} 15. fxe3 {[%emt 0:00:03]} Nxd5 {[%emt 0:00:14]} 16. exd5 {[%emt 0:00:27]} dxe5 {[%emt 0:00:13]} 17. Nxe5 {[%emt 0:00:10] [#] Nc6 is the strong threat.} Bb7 {[%emt 0:00:10]} 18. e4 {[%emt 0:03:26]} Qe7 $1 {[%emt 0:01:58]} 19. Qd4 {[%emt 0:04:01] And now Nd3 would win.} Rfe8 $1 {[%emt 0:05:05]} 20. Nd3 {[%emt 0:06:25] An uneventful encounter.   Weighted Error Value: White=0.00 (flawless) /Black=0.00 (flawless) .  OK:         	White=5     	Black=7      Strong:       	---       	Black=2} (20. Nxf7 Qxe4 21. Qxe4 Rxe4 $19) 1/2-1/2

[Event "VIII Open Semana Santa 2024"]
[Site "San Vicente del Raspeig"]
[Date "2024.03.30"]
[Round "6.2"]
[White "Garriga Cazorla, Pere"]
[Black "Alekseenko, Kirill"]
[Result "0-1"]
[ECO "D24"]
[WhiteElo "2460"]
[BlackElo "2650"]
[Annotator "TA"]
[PlyCount "88"]
[EventDate "2024.03.27"]
[EventType "swiss"]
[EventCountry "ESP"]
[SourceTitle "playchess.com"]
[Source "ChessBase"]
[SourceQuality "1"]
[TimeControl "5400+30"]

{[%evp 16,88,39,12,13,0,0,0,0,-5,0,-95,-83,-96,-82,-122,-118,-130,-130,-141,-107,-122,-119,-116,-85,-113,-122,-178,-141,-139,-85,-91,-87,-182,-98,-105,-63,-114,-118,-115,-93,-107,-95,-93,-58,-159,-153,-159,-159,-193,-179,-236,-180,-202,-188,-211,-201,-235,-198,-250,-176,-218,-210,-708,-679,-1863,-1863,-1639,-839,-1833,-1827,-1429,-1425,-1304,-1235]} 1. d4 {[%emt 0:04:24]} Nf6 {[%emt 0:02:40]} 2. c4 {[%emt 0:00:15]} e6 {[%emt 0:00:12]} 3. Nf3 {[%emt 0:00:58]} d5 {[%emt 0:00:06]} 4. Nc3 {[%emt 0:00:34]} dxc4 {[%emt 0:00:19]} 5. e4 {[%emt 0:00:25]} b5 {[%emt 0:00:13]} 6. e5 {[%emt 0:02:12] D24: Queen's Gambit Accepted: 3 Nf3 Nf6 4 Nc3.} Nd5 {[%emt 0:00:13]} 7. Nxb5 {[%emt 0:00:07]} Nb6 {[%emt 0:00:21]} 8. a3 {[%emt 0:00:59]} Nc6 {[%emt 0:01:46]} 9. Be3 {[%emt 0:01:34]} Ne7 $146 {[%emt 0:04:27]} ({Predecessor:} 9... Be7 10. Qc2 Rb8 11. Nc3 Bb7 12. Rd1 Na5 13. Be2 Qd7 14. h4 Bc6 15. Rh3 Nd5 {½-½ Kuzubov,Y (2625)-Radjabov,T (2745) AI Cup Play In rapid 2023 (7)}) 10. Qc2 {[%emt 0:13:46]} Qd7 {[%emt 0:18:42]} 11. Nc3 {[%emt 0:04:40]} (11. Bxc4 a6 12. Nxc7+ (12. Bxe6 $2 Qxb5 13. Bxc8 Rxc8 $19) 12... Qxc7 $17) 11... Nf5 {[%emt 0:02:09]} 12. Rd1 {[%emt 0:00:51]} Bb7 {[%emt 0:02:32]} 13. b3 {[%emt 0:04:29]} (13. Be2 $11) 13... Bxa3 $17 {[%emt 0:06:25]} 14. Bxc4 {[%emt 0:14:06]} Bb4 {[%emt 0:00:27]} (14... Nxc4 {simplifies} 15. bxc4 Bxf3 16. gxf3 O-O) 15. Ke2 {[%emt 0:07:57]} Bxc3 {[%emt 0:04:08]} 16. Qxc3 {[%emt 0:41:13]} O-O {[%emt 0:04:22]} 17. Qa5 {[%emt 0:00:00]} Rfb8 {[%emt 0:04:42]} 18. Rd2 {[%emt 0:00:00]} Bxf3+ {[%emt 0:15:07]} 19. gxf3 {[%emt 0:00:00]} Nd5 {[%emt 0:00:15]} 20. Rc1 {[%emt 0:00:00]} c6 {[%emt 0:00:03]} 21. Qc5 {[%emt 0:00:00]} (21. Rg1 $17 {is a better defense.}) 21... Rb6 {[%emt 0:05:30]} 22. Ra2 {[%emt 0:00:00]} Qd8 {[%emt 0:01:32]} ({Better is} 22... Rab8 23. Ra3 Ndxe3 24. fxe3 Qd8) 23. Bxd5 $17 {[%emt 0:00:00]} exd5 {[%emt 0:00:40]} (23... cxd5 24. Rxa7 Rab8 (24... Rxa7 25. Qxb6 Ra2+ 26. Kd3 $14) 25. Rc7 $17) (23... cxd5 {looks sharper.} 24. Rxa7 Rab8 25. Rc7 Rxb3 26. Rc8 Rxc8 27. Qxc8 Rb8) 24. Rca1 {[%emt 0:00:00] [#]} (24. Rc3 $17 {keeps fighting.}) 24... a6 {[%emt 0:01:17]} ({Not} 24... Rxb3 25. Qc2 (25. Qxc6 $2 Rc8 $19) 25... Nxe3 (25... Qb6 $2 26. Qxf5 g6 27. Qc2 $18) 26. Qxb3 $14) ({Black should play} 24... Rab8 $1 $19 25. Rb2 a6 (25... Rxb3 26. Rxb3 Rxb3 27. Qc2 $16)) 25. Qc2 $17 {[%emt 0:00:00]} Qc8 {[%emt 0:01:04]} 26. Qd3 {[%emt 0:00:00]} (26. Ra5 $15) 26... Rab8 $17 {[%emt 0:02:22]} 27. Ra3 {[%emt 0:00:00]} h6 {[%emt 0:01:07]} 28. Rb1 {[%emt 0:00:00]} Rb5 {[%emt 0:02:10]} 29. Bd2 {[%emt 0:00:00]} Qe6 {[%emt 0:01:14]} 30. b4 {[%emt 0:00:00]} (30. Kd1 $1 $15) 30... a5 $1 $17 {[%emt 0:00:38]} 31. Rab3 {[%emt 0:00:00]} Qg6 {[%emt 0:02:21]} 32. R1b2 {[%emt 0:00:00]} Kh7 {[%emt 0:02:06]} 33. Rb1 {[%emt 0:02:22]} (33. Ra2 $142) 33... Qh5 {[%emt 0:05:50]} 34. Rc1 {[%emt 0:02:20]} R5b6 {[%emt 0:00:08]} ({Much less strong is} 34... axb4 35. Rxc6 g6 36. e6) 35. b5 {[%emt 0:01:13]} a4 {[%emt 0:00:29]} 36. Rb4 {[%emt 0:00:06]} Rxb5 {[%emt 0:01:55]} ({Don't play} 36... cxb5 37. Rc5) 37. Rxa4 {[%emt 0:00:04]} (37. Rxb5 {was necessary.} cxb5 38. Bb4) 37... Qg6 {[%emt 0:01:16]} 38. Ra6 {[%emt 0:01:38]} Rb3 {[%emt 0:02:14]} 39. Bc3 $2 {[%emt 0:00:26]} (39. Rc3) 39... Rb2+ $19 {[%emt 0:02:49]} 40. Bxb2 {[%emt 0:00:25]} Rxb2+ {[%emt 0:00:11]} 41. Ke1 {[%emt 0:00:05]} Qg1+ {[%emt 0:00:23]} 42. Qf1 {[%emt 0:00:07]} Qg5 {[%emt 0:00:05]} 43. Rd1 {[%emt 0:00:11]} Nh4 {[%emt 0:00:15]} 44. Qd3+ {[%emt 0:02:59]} g6 {[%emt 0:00:05]} 0-1